[Event "Titled Tuesday Blitz January 10 Late 2023"]
[White "Antonio, Jorge Carlos"]
[Black "Gurevich, Dmitry"]
[WhiteFideId "113190"]
[BlackFideId "2000407"]
[WhiteElo "2277"]
[BlackElo "2393"]
[Result "1-0"]
[Round "03"]
[TimeControl "180+2"]
[Date "2023.01.10"]
[WhiteClock "0:00:03"]
[BlackClock "0:00:06"]

1. d4 {[%clk 0:00:00]}  Nf6 {[%clk 0:00:00]} 2. Nf3 {[%clk 0:03:00]}  e6 {[%clk 0:02:59]} 3. Bf4 {[%clk 0:03:01]}  b6 {[%clk 0:02:58]} 4. g3 {[%clk 0:03:00]}  Bb7 {[%clk 0:02:57]} 5. Bg2 {[%clk 0:02:59]}  Be7 {[%clk 0:02:57]} 6. O-O {[%clk 0:02:59]}  O-O {[%clk 0:02:57]} 7. c4 {[%clk 0:02:59]}  c5 {[%clk 0:02:57]} 8. d5 {[%clk 0:02:45]}  exd5 {[%clk 0:02:54]} 9. Ne1 {[%clk 0:02:28]}  d6 {[%clk 0:02:49]} 10. Nc3 {[%clk 0:02:23]}  Nbd7 {[%clk 0:02:45]} 11. Nxd5 {[%clk 0:02:20]}  Nxd5 {[%clk 0:02:44]} 12. Bxd5 {[%clk 0:02:14]}  Bxd5 {[%clk 0:02:43]} 13. Qxd5 {[%clk 0:02:12]}  Nf6 {[%clk 0:02:43]} 14. Qf3 {[%clk 0:02:08]}  Qd7 {[%clk 0:02:43]} 15. Nd3 {[%clk 0:02:04]}  Rad8 {[%clk 0:02:30]} 16. e4 {[%clk 0:02:02]}  Qe6 {[%clk 0:02:27]} 17. b3 {[%clk 0:01:58]}  Nxe4 {[%clk 0:02:25]} 18. Rae1 {[%clk 0:01:55]}  f5 {[%clk 0:02:19]} 19. Qe2 {[%clk 0:01:50]}  d5 {[%clk 0:02:18]} 20. f3 {[%clk 0:01:45]}  dxc4 {[%clk 0:02:14]} 21. Nf2 {[%clk 0:01:43]}  cxb3 {[%clk 0:02:13]} 22. axb3 {[%clk 0:01:39]}  Qxb3 {[%clk 0:02:00]} 23. fxe4 {[%clk 0:01:36]}  fxe4 {[%clk 0:01:50]} 24. Nxe4 {[%clk 0:01:33]}  Qd3 {[%clk 0:01:48]} 25. Qa2+ {[%clk 0:01:30]}  c4 {[%clk 0:01:46]} 26. Qxa7 {[%clk 0:01:25]}  Bb4 {[%clk 0:01:37]} 27. Nf2 {[%clk 0:01:24]}  Bc5 {[%clk 0:01:22]} 28. Qb7 {[%clk 0:00:53]}  Rf7 {[%clk 0:01:14]} 29. Qc6 {[%clk 0:00:44]}  Rdf8 {[%clk 0:01:06]} 30. Kg2 {[%clk 0:00:37]}  g5 {[%clk 0:00:57]} 31. Nxd3 {[%clk 0:00:23]}  cxd3 {[%clk 0:00:54]} 32. Qd5 {[%clk 0:00:18]}  h6 {[%clk 0:00:51]} 33. Bxg5 {[%clk 0:00:18]}  hxg5 {[%clk 0:00:35]} 34. Qxg5+ {[%clk 0:00:14]}  Kh7 {[%clk 0:00:31]} 35. Rxf7+ {[%clk 0:00:13]}  Rxf7 {[%clk 0:00:28]} 36. Qd5 {[%clk 0:00:13]}  Rf2+ {[%clk 0:00:28]} 37. Kh3 {[%clk 0:00:09]}  d2 {[%clk 0:00:24]} 38. Re6 {[%clk 0:00:09]}  Kg7 {[%clk 0:00:22]} 39. Qd7+ {[%clk 0:00:06]}  Rf7 {[%clk 0:00:14]} 40. Qxd2 {[%clk 0:00:06]}  Kf8 {[%clk 0:00:12]} 41. Qe2 {[%clk 0:00:05]}  b5 {[%clk 0:00:11]} 42. Re4 {[%clk 0:00:04]}  b4 {[%clk 0:00:09]} 43. Rf4 {[%clk 0:00:05]}  Bd6 {[%clk 0:00:08]} 44. Rxf7+ {[%clk 0:00:05]}  Kxf7 {[%clk 0:00:06]} 45. Qc4+ {[%clk 0:00:03]} 1-0


[Site "https://www.chess.com"]

[Event "Titled Tuesday Blitz January 10 Late 2023"]
[White "Lopez Mulet, Inigo"]
[Black "Floresvillar Gonzalez, Luis Migu"]
[WhiteFideId "22235620"]
[BlackFideId "5100542"]
[WhiteElo "2403"]
[BlackElo "2043"]
[Result "1-0"]
[Round "03"]
[TimeControl "180+2"]
[Date "2023.01.10"]
[WhiteClock "0:02:42"]
[BlackClock "0:00:54"]

1. Nf3 {[%clk 0:00:00]}  d5 {[%clk 0:00:00]} 2. g3 {[%clk 0:02:56]}  c6 {[%clk 0:02:58]} 3. Bg2 {[%clk 0:02:57]}  Bf5 {[%clk 0:02:58]} 4. c4 {[%clk 0:02:58]}  e6 {[%clk 0:02:58]} 5. b3 {[%clk 0:02:58]}  Nd7 {[%clk 0:02:57]} 6. Bb2 {[%clk 0:02:58]}  Ngf6 {[%clk 0:02:51]} 7. O-O {[%clk 0:02:59]}  Be7 {[%clk 0:02:49]} 8. Re1 {[%clk 0:03:00]}  O-O {[%clk 0:02:48]} 9. d3 {[%clk 0:03:00]}  h6 {[%clk 0:02:47]} 10. Nbd2 {[%clk 0:03:00]}  Re8 {[%clk 0:02:44]} 11. a4 {[%clk 0:03:01]}  a5 {[%clk 0:02:43]} 12. e4 {[%clk 0:03:00]}  dxe4 {[%clk 0:02:35]} 13. dxe4 {[%clk 0:02:59]}  Bg4 {[%clk 0:02:34]} 14. e5 {[%clk 0:02:59]}  Nh7 {[%clk 0:02:14]} 15. Ne4 {[%clk 0:02:56]}  Nc5 {[%clk 0:02:11]} 16. Qe2 {[%clk 0:02:56]}  Nxe4 {[%clk 0:02:05]} 17. Qxe4 {[%clk 0:02:47]}  Bf5 {[%clk 0:02:04]} 18. Qe3 {[%clk 0:02:47]}  Ng5 {[%clk 0:02:00]} 19. Nd4 {[%clk 0:02:47]}  Bc5 {[%clk 0:01:29]} 20. h4 {[%clk 0:02:47]}  Nh7 {[%clk 0:01:18]} 21. Qf4 {[%clk 0:02:47]}  Bg6 {[%clk 0:01:10]} 22. Rad1 {[%clk 0:02:47]}  Qb6 {[%clk 0:01:00]} 23. Re3 {[%clk 0:02:46]}  Bxd4 {[%clk 0:00:59]} 24. Bxd4 {[%clk 0:02:43]}  Bc2 {[%clk 0:00:54]} 25. Bxb6 {[%clk 0:02:42]} 1-0


[Site "https://www.chess.com"]

[Event "Titled Tuesday Blitz January 10 Late 2023"]
[White "Krishnan, Varun"]
[Black "Clawitter, Craig"]
[WhiteFideId "5054508"]
[BlackFideId "2023105"]
[WhiteElo "2341"]
[BlackElo "2050"]
[Result "1-0"]
[Round "03"]
[TimeControl "180+2"]
[Date "2023.01.10"]
[WhiteClock "0:00:09"]
[BlackClock "0:00:06"]

1. d4 {[%clk 0:00:00]}  e6 {[%clk 0:00:00]} 2. c4 {[%clk 0:03:00]}  Nf6 {[%clk 0:02:54]} 3. g3 {[%clk 0:02:58]}  d5 {[%clk 0:02:53]} 4. Bg2 {[%clk 0:02:58]}  Be7 {[%clk 0:02:46]} 5. Nf3 {[%clk 0:02:51]}  O-O {[%clk 0:02:45]} 6. O-O {[%clk 0:02:50]}  dxc4 {[%clk 0:02:43]} 7. Qc2 {[%clk 0:02:50]}  a6 {[%clk 0:02:42]} 8. a4 {[%clk 0:02:48]}  Bd7 {[%clk 0:02:42]} 9. Qxc4 {[%clk 0:02:48]}  Bc6 {[%clk 0:02:42]} 10. Nc3 {[%clk 0:02:48]}  b5 {[%clk 0:02:40]} 11. Qb3 {[%clk 0:02:48]}  b4 {[%clk 0:02:33]} 12. Nd1 {[%clk 0:02:31]}  Bd5 {[%clk 0:02:19]} 13. Qc2 {[%clk 0:02:30]}  Nc6 {[%clk 0:02:10]} 14. e3 {[%clk 0:02:30]}  Na5 {[%clk 0:01:31]} 15. Ne5 {[%clk 0:02:12]}  c5 {[%clk 0:01:26]} 16. e4 {[%clk 0:02:09]}  Bb3 {[%clk 0:01:06]} 17. Qd2 {[%clk 0:01:44]}  cxd4 {[%clk 0:01:03]} 18. Nd3 {[%clk 0:01:39]}  Bc4 {[%clk 0:00:49]} 19. Rb1 {[%clk 0:01:33]}  Rc8 {[%clk 0:00:38]} 20. Nxb4 {[%clk 0:01:08]}  Bxf1 {[%clk 0:00:34]} 21. Bxf1 {[%clk 0:01:00]}  Nb3 {[%clk 0:00:25]} 22. Qe1 {[%clk 0:00:56]}  Rxc1 {[%clk 0:00:25]} 23. Rxc1 {[%clk 0:00:52]}  Nxc1 {[%clk 0:00:19]} 24. Nxa6 {[%clk 0:00:51]}  Nb3 {[%clk 0:00:20]} 25. Bc4 {[%clk 0:00:46]}  Nc5 {[%clk 0:00:16]} 26. Nxc5 {[%clk 0:00:41]}  Bxc5 {[%clk 0:00:16]} 27. b4 {[%clk 0:00:36]}  Be7 {[%clk 0:00:17]} 28. a5 {[%clk 0:00:36]}  e5 {[%clk 0:00:15]} 29. b5 {[%clk 0:00:29]}  Qc7 {[%clk 0:00:15]} 30. Bd3 {[%clk 0:00:27]}  Bc5 {[%clk 0:00:15]} 31. b6 {[%clk 0:00:23]}  Qc6 {[%clk 0:00:13]} 32. Nb2 {[%clk 0:00:21]}  Rc8 {[%clk 0:00:13]} 33. Nc4 {[%clk 0:00:18]}  Bf8 {[%clk 0:00:12]} 34. a6 {[%clk 0:00:18]}  Qc5 {[%clk 0:00:12]} 35. a7 {[%clk 0:00:17]}  Nd7 {[%clk 0:00:11]} 36. b7 {[%clk 0:00:14]}  Nb6 {[%clk 0:00:09]} 37. Nxb6 {[%clk 0:00:12]}  Qxb6 {[%clk 0:00:07]} 38. bxc8=Q {[%clk 0:00:10]}  Qxa7 {[%clk 0:00:06]} 39. Qb4 {[%clk 0:00:10]}  Qe7 {[%clk 0:00:06]} 40. Qxe7 {[%clk 0:00:09]} 1-0


[Site "https://www.chess.com"]

[Event "Titled Tuesday Blitz January 10 Late 2023"]
[White "Gutkin, Ilya"]
[Black "Domingo Nunez, Ruben"]
[WhiteFideId "16203470"]
[BlackFideId "22245570"]
[WhiteElo "2273"]
[BlackElo "2416"]
[Result "0-1"]
[Round "03"]
[TimeControl "180+2"]
[Date "2023.01.10"]
[WhiteClock "0:00:05"]
[BlackClock "0:01:15"]

1. Nf3 {[%clk 0:00:00]}  g6 {[%clk 0:00:00]} 2. d4 {[%clk 0:03:00]}  Bg7 {[%clk 0:03:00]} 3. e4 {[%clk 0:02:59]}  c6 {[%clk 0:03:01]} 4. Nc3 {[%clk 0:02:59]}  d5 {[%clk 0:02:56]} 5. h3 {[%clk 0:02:55]}  dxe4 {[%clk 0:02:57]} 6. Nxe4 {[%clk 0:02:42]}  Nf6 {[%clk 0:02:58]} 7. Nxf6+ {[%clk 0:02:42]}  exf6 {[%clk 0:02:59]} 8. Qe2+ {[%clk 0:02:42]}  Be6 {[%clk 0:03:00]} 9. Be3 {[%clk 0:02:36]}  O-O {[%clk 0:02:58]} 10. Qd2 {[%clk 0:02:35]}  Re8 {[%clk 0:02:59]} 11. Be2 {[%clk 0:02:33]}  a5 {[%clk 0:02:59]} 12. O-O {[%clk 0:02:33]}  Na6 {[%clk 0:02:59]} 13. c3 {[%clk 0:02:33]}  Nc7 {[%clk 0:02:59]} 14. b3 {[%clk 0:02:31]}  Nd5 {[%clk 0:03:00]} 15. c4 {[%clk 0:02:28]}  Nxe3 {[%clk 0:03:00]} 16. fxe3 {[%clk 0:02:24]}  Bf5 {[%clk 0:03:00]} 17. Bd3 {[%clk 0:02:24]}  Be4 {[%clk 0:02:58]} 18. Bxe4 {[%clk 0:02:22]}  Rxe4 {[%clk 0:02:54]} 19. Qd3 {[%clk 0:02:22]}  Qe7 {[%clk 0:02:55]} 20. Rae1 {[%clk 0:02:22]}  Re8 {[%clk 0:02:56]} 21. Qc3 {[%clk 0:02:20]}  b6 {[%clk 0:02:56]} 22. c5 {[%clk 0:01:34]}  bxc5 {[%clk 0:02:45]} 23. dxc5 {[%clk 0:01:28]}  a4 {[%clk 0:02:44]} 24. bxa4 {[%clk 0:01:28]}  Rxa4 {[%clk 0:02:32]} 25. Nd4 {[%clk 0:01:16]}  f5 {[%clk 0:02:31]} 26. Qb3 {[%clk 0:01:12]}  Ra6 {[%clk 0:02:31]} 27. Qc4 {[%clk 0:01:07]}  Rea8 {[%clk 0:02:28]} 28. e4 {[%clk 0:00:59]}  Qd7 {[%clk 0:01:42]} 29. Nb3 {[%clk 0:00:37]}  Ra4 {[%clk 0:01:35]} 30. Qc1 {[%clk 0:00:28]}  fxe4 {[%clk 0:01:28]} 31. Rd1 {[%clk 0:00:13]}  Qe7 {[%clk 0:01:22]} 32. Qf4 {[%clk 0:00:09]}  e3 {[%clk 0:01:16]} 33. Rfe1 {[%clk 0:00:05]}  Rxf4 {[%clk 0:01:15]} 0-1


[Site "https://www.chess.com"]

[Event "Titled Tuesday Blitz January 10 Late 2023"]
[White "Silva, Caio Henrique Angelico"]
[Black "Defend, Balint"]
[WhiteFideId "22777210"]
[BlackFideId "17004853"]
[WhiteElo "2129"]
[BlackElo "1673"]
[Result "0-1"]
[Round "03"]
[TimeControl "180+2"]
[Date "2023.01.10"]
[WhiteClock "0:02:03"]
[BlackClock "0:02:12"]

1. Nf3 {[%clk 0:00:00]}  Nf6 {[%clk 0:00:00]} 2. g3 {[%clk 0:03:00]}  d5 {[%clk 0:02:59]} 3. Bg2 {[%clk 0:02:58]}  e6 {[%clk 0:02:59]} 4. O-O {[%clk 0:02:58]}  b6 {[%clk 0:02:59]} 5. d4 {[%clk 0:02:58]}  Bb7 {[%clk 0:02:58]} 6. c4 {[%clk 0:02:59]}  dxc4 {[%clk 0:02:58]} 7. Nc3 {[%clk 0:02:59]}  Nbd7 {[%clk 0:02:59]} 8. Qa4 {[%clk 0:02:58]}  a6 {[%clk 0:02:58]} 9. Qxc4 {[%clk 0:02:57]}  b5 {[%clk 0:02:59]} 10. Qb3 {[%clk 0:02:57]}  c5 {[%clk 0:02:57]} 11. a4 {[%clk 0:02:57]}  c4 {[%clk 0:02:56]} 12. Qc2 {[%clk 0:02:53]}  b4 {[%clk 0:02:48]} 13. Nd1 {[%clk 0:02:48]}  Be4 {[%clk 0:02:48]} 14. Qxc4 {[%clk 0:02:48]}  Qa5 {[%clk 0:02:47]} 15. Bg5 {[%clk 0:02:45]}  Bd6 {[%clk 0:02:19]} 16. Nd2 {[%clk 0:02:25]}  Bxg2 {[%clk 0:02:15]} 17. Kxg2 {[%clk 0:02:15]}  Qxg5 {[%clk 0:02:13]} 18. Qc6 {[%clk 0:02:10]}  Qd5+ {[%clk 0:02:12]} 19. Qxd5 {[%clk 0:02:03]}  exd5 {[%clk 0:02:12]} 0-1


[Site "https://www.chess.com"]

[Event "Titled Tuesday Blitz January 10 Late 2023"]
[White "Belenkaya, Dina"]
[Black "De Arruda, Leandro Formes"]
[WhiteFideId "24142654"]
[BlackFideId "22722009"]
[WhiteElo "2267"]
[BlackElo "1980"]
[Result "1/2-1/2"]
[Round "03"]
[TimeControl "180+2"]
[Date "2023.01.10"]
[WhiteClock "0:00:22"]
[BlackClock "0:00:10"]

1. Nf3 {[%clk 0:00:00]}  d5 {[%clk 0:00:00]} 2. g3 {[%clk 0:02:59]}  Nf6 {[%clk 0:03:00]} 3. Bg2 {[%clk 0:02:59]}  g6 {[%clk 0:03:00]} 4. d3 {[%clk 0:02:55]}  Bg7 {[%clk 0:03:00]} 5. Nbd2 {[%clk 0:02:54]}  O-O {[%clk 0:03:01]} 6. O-O {[%clk 0:02:53]}  Bf5 {[%clk 0:03:00]} 7. Re1 {[%clk 0:02:53]}  Nc6 {[%clk 0:02:58]} 8. h3 {[%clk 0:02:53]}  e5 {[%clk 0:02:55]} 9. Kh2 {[%clk 0:02:53]}  Re8 {[%clk 0:02:53]} 10. c3 {[%clk 0:02:38]}  e4 {[%clk 0:02:36]} 11. Nh4 {[%clk 0:02:24]}  exd3 {[%clk 0:02:32]} 12. Nxf5 {[%clk 0:02:10]}  dxe2 {[%clk 0:02:10]} 13. Rxe2 {[%clk 0:01:57]}  Rxe2 {[%clk 0:02:05]} 14. Qxe2 {[%clk 0:01:56]}  gxf5 {[%clk 0:02:04]} 15. Qf3 {[%clk 0:01:57]}  Qd7 {[%clk 0:02:05]} 16. Nb3 {[%clk 0:01:51]}  Ne5 {[%clk 0:02:01]} 17. Qd1 {[%clk 0:01:48]}  c6 {[%clk 0:01:46]} 18. Bf4 {[%clk 0:01:41]}  Nc4 {[%clk 0:01:41]} 19. Nc5 {[%clk 0:01:34]}  Qe7 {[%clk 0:01:31]} 20. b4 {[%clk 0:01:33]}  Ne4 {[%clk 0:01:28]} 21. Qh5 {[%clk 0:01:29]}  Nxc5 {[%clk 0:01:26]} 22. bxc5 {[%clk 0:01:17]}  Bxc3 {[%clk 0:01:02]} 23. Rb1 {[%clk 0:01:17]}  Nd2 {[%clk 0:00:55]} 24. Bxd2 {[%clk 0:01:14]}  Bxd2 {[%clk 0:00:28]} 25. Qxf5 {[%clk 0:00:42]}  Bc3 {[%clk 0:00:29]} 26. Bf3 {[%clk 0:00:43]}  Bg7 {[%clk 0:00:15]} 27. Rb3 {[%clk 0:00:41]}  b6 {[%clk 0:00:13]} 28. cxb6 {[%clk 0:00:36]}  axb6 {[%clk 0:00:11]} 29. Rxb6 {[%clk 0:00:33]}  Rxa2 {[%clk 0:00:12]} 30. Rb8+ {[%clk 0:00:34]}  Bf8 {[%clk 0:00:11]} 31. Qg4+ {[%clk 0:00:31]}  Kh8 {[%clk 0:00:11]} 32. Qc8 {[%clk 0:00:32]}  Rxf2+ {[%clk 0:00:10]} 33. Bg2 {[%clk 0:00:24]}  Rxg2+ {[%clk 0:00:08]} 34. Kxg2 {[%clk 0:00:23]}  Qe2+ {[%clk 0:00:08]} 35. Kg1 {[%clk 0:00:23]}  Qe1+ {[%clk 0:00:09]} 36. Kg2 {[%clk 0:00:21]}  Qe2+ {[%clk 0:00:09]} 37. Kg1 {[%clk 0:00:22]}  Qe1+ {[%clk 0:00:09]} 38. Kg2 {[%clk 0:00:22]}  Qe2+ {[%clk 0:00:10]} 1/2-1/2


[Site "https://www.chess.com"]

[Event "Titled Tuesday Blitz January 10 Late 2023"]
[White "Reprintsev, Alexander"]
[Black "Muhammad, Shahzeb"]
[WhiteFideId "14100541"]
[BlackFideId "7804806"]
[WhiteElo "2253"]
[BlackElo "1853"]
[Result "0-1"]
[Round "03"]
[TimeControl "180+2"]
[Date "2023.01.10"]
[WhiteClock "0:00:18"]
[BlackClock "0:00:08"]

1. e4 {[%clk 0:00:00]}  d5 {[%clk 0:00:00]} 2. exd5 {[%clk 0:03:00]}  Nf6 {[%clk 0:02:58]} 3. d4 {[%clk 0:03:00]}  Nxd5 {[%clk 0:02:57]} 4. c4 {[%clk 0:02:59]}  Nb6 {[%clk 0:02:57]} 5. Nc3 {[%clk 0:02:59]}  e5 {[%clk 0:02:58]} 6. Nf3 {[%clk 0:02:59]}  exd4 {[%clk 0:02:58]} 7. Nxd4 {[%clk 0:02:59]}  Bb4 {[%clk 0:02:55]} 8. Be2 {[%clk 0:02:56]}  O-O {[%clk 0:02:54]} 9. O-O {[%clk 0:02:53]}  Bxc3 {[%clk 0:02:53]} 10. bxc3 {[%clk 0:02:53]}  Qf6 {[%clk 0:02:53]} 11. c5 {[%clk 0:02:53]}  Nd5 {[%clk 0:02:44]} 12. Qb3 {[%clk 0:02:48]}  c6 {[%clk 0:02:43]} 13. Bf3 {[%clk 0:02:43]}  Nc7 {[%clk 0:02:33]} 14. Re1 {[%clk 0:02:39]}  Nba6 {[%clk 0:02:23]} 15. Ba3 {[%clk 0:02:35]}  Rb8 {[%clk 0:02:18]} 16. Qc4 {[%clk 0:02:29]}  Ne6 {[%clk 0:02:10]} 17. Re4 {[%clk 0:02:25]}  Ng5 {[%clk 0:01:59]} 18. Re3 {[%clk 0:02:05]}  Be6 {[%clk 0:01:48]} 19. Nxe6 {[%clk 0:02:05]}  Nxe6 {[%clk 0:01:42]} 20. Bxc6 {[%clk 0:02:03]}  Naxc5 {[%clk 0:01:37]} 21. Bf3 {[%clk 0:02:01]}  Rbc8 {[%clk 0:01:01]} 22. Qb5 {[%clk 0:01:41]}  b6 {[%clk 0:00:57]} 23. Rae1 {[%clk 0:01:19]}  Rfd8 {[%clk 0:00:52]} 24. h3 {[%clk 0:01:17]}  h6 {[%clk 0:00:47]} 25. Bg4 {[%clk 0:01:16]}  Rd6 {[%clk 0:00:25]} 26. Bxc5 {[%clk 0:01:16]}  Rxc5 {[%clk 0:00:16]} 27. Qa6 {[%clk 0:00:30]}  Rc7 {[%clk 0:00:14]} 28. Bxe6 {[%clk 0:00:31]}  Rxe6 {[%clk 0:00:11]} 29. Rxe6 {[%clk 0:00:29]}  fxe6 {[%clk 0:00:10]} 30. Re3 {[%clk 0:00:29]}  Rxc3 {[%clk 0:00:11]} 31. Rxc3 {[%clk 0:00:25]}  Qxc3 {[%clk 0:00:09]} 32. Qxa7 {[%clk 0:00:24]}  Qe1+ {[%clk 0:00:10]} 33. Kh2 {[%clk 0:00:25]}  Qxf2 {[%clk 0:00:10]} 34. Qa8+ {[%clk 0:00:25]}  Kh7 {[%clk 0:00:11]} 35. Qe4+ {[%clk 0:00:24]}  Qf5 {[%clk 0:00:10]} 36. Qe3 {[%clk 0:00:23]}  b5 {[%clk 0:00:09]} 37. a3 {[%clk 0:00:22]}  e5 {[%clk 0:00:08]} 38. Qc5 {[%clk 0:00:21]}  Qf4+ {[%clk 0:00:08]} 39. Kg1 {[%clk 0:00:18]}  Qd4+ {[%clk 0:00:08]} 40. Qxd4 {[%clk 0:00:18]}  exd4 {[%clk 0:00:08]} 41. Kf2 {[%clk 0:00:18]}  Kg6 {[%clk 0:00:09]} 42. g4 {[%clk 0:00:19]}  Kf6 {[%clk 0:00:08]} 43. Kf3 {[%clk 0:00:17]}  Ke5 {[%clk 0:00:08]} 44. h4 {[%clk 0:00:17]}  g5 {[%clk 0:00:08]} 45. h5 {[%clk 0:00:18]}  Kd5 {[%clk 0:00:08]} 0-1


[Site "https://www.chess.com"]

[Event "Titled Tuesday Blitz January 10 Late 2023"]
[White "Stanisz, Patryk"]
[Black "Malka, Samuel"]
[WhiteFideId "1123106"]
[BlackFideId "20643675"]
[WhiteElo "2161"]
[BlackElo "2165"]
[Result "1/2-1/2"]
[Round "03"]
[TimeControl "180+2"]
[Date "2023.01.10"]
[WhiteClock "0:00:52"]
[BlackClock "0:00:20"]

1. d4 {[%clk 0:00:00]}  d5 {[%clk 0:00:00]} 2. c4 {[%clk 0:03:00]}  e6 {[%clk 0:02:57]} 3. Nc3 {[%clk 0:03:00]}  Nf6 {[%clk 0:02:58]} 4. Nf3 {[%clk 0:03:01]}  Nbd7 {[%clk 0:02:58]} 5. Bf4 {[%clk 0:03:00]}  Bb4 {[%clk 0:02:57]} 6. e3 {[%clk 0:02:57]}  O-O {[%clk 0:02:55]} 7. Rc1 {[%clk 0:02:55]}  a6 {[%clk 0:02:42]} 8. a3 {[%clk 0:02:49]}  Bxc3+ {[%clk 0:02:17]} 9. Rxc3 {[%clk 0:02:42]}  dxc4 {[%clk 0:02:16]} 10. Bxc4 {[%clk 0:02:43]}  b5 {[%clk 0:02:10]} 11. Ba2 {[%clk 0:02:44]}  Ra7 {[%clk 0:02:09]} 12. Qc2 {[%clk 0:02:21]}  c5 {[%clk 0:01:36]} 13. dxc5 {[%clk 0:02:15]}  e5 {[%clk 0:01:13]} 14. Nxe5 {[%clk 0:02:09]}  Nxe5 {[%clk 0:01:09]} 15. Bxe5 {[%clk 0:01:59]}  Ng4 {[%clk 0:01:09]} 16. Bd6 {[%clk 0:02:00]}  Re8 {[%clk 0:01:07]} 17. h3 {[%clk 0:01:51]}  Qh4 {[%clk 0:01:07]} 18. g3 {[%clk 0:01:50]}  Qh6 {[%clk 0:00:59]} 19. Bf4 {[%clk 0:01:20]}  g5 {[%clk 0:00:58]} 20. Bxg5 {[%clk 0:01:03]}  Qxg5 {[%clk 0:00:48]} 21. hxg4 {[%clk 0:00:52]}  h6 {[%clk 0:00:26]} 22. Rh5 {[%clk 0:00:52]}  Qg7 {[%clk 0:00:20]} 1/2-1/2


[Site "https://www.chess.com"]

[Event "Titled Tuesday Blitz January 10 Late 2023"]
[White "Pasti, Aron"]
[Black "Harish, Neeraj"]
[WhiteFideId "785857"]
[BlackFideId "30958130"]
[WhiteElo "2361"]
[BlackElo "2232"]
[Result "1-0"]
[Round "03"]
[TimeControl "180+2"]
[Date "2023.01.10"]
[WhiteClock "0:00:47"]
[BlackClock "0:00:40"]

1. e4 {[%clk 0:00:00]}  c5 {[%clk 0:00:00]} 2. Nf3 {[%clk 0:03:00]}  Nc6 {[%clk 0:02:59]} 3. d4 {[%clk 0:02:59]}  cxd4 {[%clk 0:03:00]} 4. Nxd4 {[%clk 0:02:58]}  Nf6 {[%clk 0:03:00]} 5. Nc3 {[%clk 0:02:58]}  e5 {[%clk 0:03:01]} 6. Ndb5 {[%clk 0:02:54]}  d6 {[%clk 0:03:01]} 7. Nd5 {[%clk 0:02:55]}  Nxd5 {[%clk 0:03:00]} 8. exd5 {[%clk 0:02:55]}  Nb8 {[%clk 0:03:00]} 9. a4 {[%clk 0:02:56]}  Be7 {[%clk 0:03:00]} 10. Be2 {[%clk 0:02:56]}  O-O {[%clk 0:02:58]} 11. O-O {[%clk 0:02:56]}  Nd7 {[%clk 0:02:56]} 12. Bd2 {[%clk 0:02:57]}  a6 {[%clk 0:02:56]} 13. Na3 {[%clk 0:02:53]}  a5 {[%clk 0:02:55]} 14. Nc4 {[%clk 0:02:53]}  f5 {[%clk 0:02:56]} 15. b4 {[%clk 0:02:50]}  f4 {[%clk 0:02:52]} 16. bxa5 {[%clk 0:02:50]}  e4 {[%clk 0:02:42]} 17. Bb4 {[%clk 0:02:48]}  Rf6 {[%clk 0:02:34]} 18. Bg4 {[%clk 0:02:43]}  Ne5 {[%clk 0:02:08]} 19. Nxe5 {[%clk 0:02:38]}  dxe5 {[%clk 0:01:37]} 20. Bxe7 {[%clk 0:02:33]}  Qxe7 {[%clk 0:01:37]} 21. Bxc8 {[%clk 0:02:27]}  Rxc8 {[%clk 0:01:37]} 22. Qe2 {[%clk 0:02:19]}  f3 {[%clk 0:01:38]} 23. Qxe4 {[%clk 0:02:20]}  fxg2 {[%clk 0:01:28]} 24. Rfe1 {[%clk 0:02:19]}  Qc5 {[%clk 0:01:26]} 25. Qe3 {[%clk 0:02:20]}  Qxd5 {[%clk 0:01:19]} 26. Rad1 {[%clk 0:01:22]}  Qxa5 {[%clk 0:01:14]} 27. Qg3 {[%clk 0:01:19]}  Rxc2 {[%clk 0:01:10]} 28. Rxe5 {[%clk 0:01:06]}  Qxa4 {[%clk 0:01:03]} 29. Re7 {[%clk 0:01:04]}  Rf7 {[%clk 0:00:40]} 30. Rd8+ {[%clk 0:00:47]} 1-0


[Site "https://www.chess.com"]